[Event "Titled Tuesday Blitz January 31 Early 2023"]
[White "Alhadad, Mahmoud"]
[Black "Kostiukov, Alexandr"]
[WhiteFideId "11501863"]
[BlackFideId "14108100"]
[WhiteElo "1840"]
[BlackElo "2271"]
[Result "0-1"]
[Round "04"]
[TimeControl "180+2"]
[Date "2023.01.31"]
[WhiteClock "0:00:03"]
[BlackClock "0:00:04"]

1. e4 {[%clk 0:03:00]}  c5 {[%clk 0:02:59]} 2. Nc3 {[%clk 0:03:01]}  g6 {[%clk 0:02:51]} 3. d4 {[%clk 0:03:00]}  cxd4 {[%clk 0:02:50]} 4. Qxd4 {[%clk 0:03:01]}  Nf6 {[%clk 0:02:49]} 5. Bb5 {[%clk 0:03:01]}  a6 {[%clk 0:02:48]} 6. Qa4 {[%clk 0:03:01]}  Nc6 {[%clk 0:02:19]} 7. Nf3 {[%clk 0:02:57]}  Bg7 {[%clk 0:02:17]} 8. Bf4 {[%clk 0:02:46]}  O-O {[%clk 0:02:10]} 9. O-O-O {[%clk 0:02:40]}  Ng4 {[%clk 0:02:00]} 10. Bxc6 {[%clk 0:02:29]}  bxc6 {[%clk 0:01:54]} 11. Bg3 {[%clk 0:02:27]}  Qb6 {[%clk 0:01:17]} 12. Rd2 {[%clk 0:02:25]}  Bh6 {[%clk 0:01:05]} 13. h4 {[%clk 0:01:50]}  Bxd2+ {[%clk 0:00:59]} 14. Nxd2 {[%clk 0:01:50]}  Nxf2 {[%clk 0:00:44]} 15. Re1 {[%clk 0:01:41]}  Ng4 {[%clk 0:00:42]} 16. e5 {[%clk 0:01:21]}  h5 {[%clk 0:00:37]} 17. Qf4 {[%clk 0:01:17]}  Rb8 {[%clk 0:00:24]} 18. b3 {[%clk 0:01:10]}  Qb4 {[%clk 0:00:24]} 19. Nde4 {[%clk 0:01:06]}  a5 {[%clk 0:00:15]} 20. e6 {[%clk 0:00:28]}  Qa3+ {[%clk 0:00:13]} 21. Kb1 {[%clk 0:00:23]}  Rb4 {[%clk 0:00:13]} 22. Qg5 {[%clk 0:00:18]}  dxe6 {[%clk 0:00:08]} 23. Nf2 {[%clk 0:00:14]}  Nxf2 {[%clk 0:00:06]} 24. Bxf2 {[%clk 0:00:13]}  a4 {[%clk 0:00:07]} 25. Re4 {[%clk 0:00:09]}  axb3 {[%clk 0:00:06]} 26. cxb3 {[%clk 0:00:09]}  Rxe4 {[%clk 0:00:06]} 27. Nxe4 {[%clk 0:00:09]}  Qb4 {[%clk 0:00:06]} 28. Nf6+ {[%clk 0:00:07]}  exf6 {[%clk 0:00:05]} 29. Qxf6 {[%clk 0:00:08]}  Qe4+ {[%clk 0:00:05]} 30. Kb2 {[%clk 0:00:07]}  Qf5 {[%clk 0:00:05]} 31. Qd4 {[%clk 0:00:07]}  e5 {[%clk 0:00:05]} 32. Qe3 {[%clk 0:00:06]}  Be6 {[%clk 0:00:05]} 33. Be1 {[%clk 0:00:06]}  Rd8 {[%clk 0:00:05]} 34. Bc3 {[%clk 0:00:07]}  Rd3 {[%clk 0:00:05]} 35. Qc5 {[%clk 0:00:06]}  Qe4 {[%clk 0:00:03]} 36. Bb4 {[%clk 0:00:06]}  Qe2+ {[%clk 0:00:03]} 37. Ka3 {[%clk 0:00:05]}  Rd5 {[%clk 0:00:03]} 38. Qf8+ {[%clk 0:00:05]}  Kh7 {[%clk 0:00:03]} 39. Bc3 {[%clk 0:00:04]}  Qa6+ {[%clk 0:00:04]} 40. Kb2 {[%clk 0:00:04]}  Qd3 {[%clk 0:00:02]} 41. Qb8 {[%clk 0:00:03]}  Rc5 {[%clk 0:00:02]} 42. Bxe5 {[%clk 0:00:03]}  Rxe5 {[%clk 0:00:01]} 43. Qxe5 {[%clk 0:00:03]}  Qf5 {[%clk 0:00:02]} 44. Qb8 {[%clk 0:00:02]}  Qf6+ {[%clk 0:00:01]} 45. Ka3 {[%clk 0:00:02]}  Qxh4 {[%clk 0:00:02]} 46. g3 {[%clk 0:00:02]}  Qf6 {[%clk 0:00:02]} 47. b4 {[%clk 0:00:02]}  Kg7 {[%clk 0:00:03]} 48. Qd8 {[%clk 0:00:03]}  Qxd8 {[%clk 0:00:03]} 49. Ka4 {[%clk 0:00:03]}  Qd5 {[%clk 0:00:03]} 50. Ka3 {[%clk 0:00:03]}  Qxa2# {[%clk 0:00:04]} 0-1


[Site "https://www.chess.com"]

[Event "Titled Tuesday Blitz January 31 Early 2023"]
[White "Thomas, Anysia"]
[Black "Avazkhonov, Alikhon"]
[WhiteFideId "670472"]
[BlackFideId "14208504"]
[WhiteElo "2147"]
[BlackElo "1538"]
[Result "0-1"]
[Round "04"]
[TimeControl "180+2"]
[Date "2023.01.31"]
[WhiteClock "0:00:17"]
[BlackClock "0:01:08"]

1. d4 {[%clk 0:03:00]}  Nf6 {[%clk 0:02:59]} 2. c4 {[%clk 0:02:51]}  e6 {[%clk 0:02:59]} 3. Nf3 {[%clk 0:02:51]}  Bb4+ {[%clk 0:02:58]} 4. Nbd2 {[%clk 0:02:49]}  b6 {[%clk 0:02:55]} 5. g3 {[%clk 0:02:48]}  Bb7 {[%clk 0:02:55]} 6. Bg2 {[%clk 0:02:49]}  O-O {[%clk 0:02:55]} 7. O-O {[%clk 0:02:49]}  d5 {[%clk 0:02:48]} 8. Ne5 {[%clk 0:02:46]}  Nbd7 {[%clk 0:02:41]} 9. a3 {[%clk 0:02:45]}  Bd6 {[%clk 0:02:41]} 10. Ndf3 {[%clk 0:02:42]}  c5 {[%clk 0:02:40]} 11. e3 {[%clk 0:02:39]}  dxc4 {[%clk 0:02:20]} 12. Nxc4 {[%clk 0:02:38]}  Bc7 {[%clk 0:02:20]} 13. b3 {[%clk 0:02:34]}  cxd4 {[%clk 0:02:15]} 14. Qxd4 {[%clk 0:02:31]}  Nc5 {[%clk 0:02:12]} 15. Qh4 {[%clk 0:02:20]}  Nxb3 {[%clk 0:02:04]} 16. Bb2 {[%clk 0:02:20]}  Nxa1 {[%clk 0:01:56]} 17. Bxa1 {[%clk 0:02:09]}  Rc8 {[%clk 0:01:39]} 18. Ng5 {[%clk 0:00:54]}  Bxg2 {[%clk 0:01:15]} 19. Bxf6 {[%clk 0:00:53]}  Qd3 {[%clk 0:01:15]} 20. e4 {[%clk 0:00:17]}  Qxf1# {[%clk 0:01:08]} 0-1


[Site "https://www.chess.com"]

[Event "Titled Tuesday Blitz January 31 Early 2023"]
[White "Jiganchine, Roman"]
[Black "Hrbek, Stepan"]
[WhiteFideId "2603667"]
[BlackFideId "393479"]
[WhiteElo "2205"]
[BlackElo "2306"]
[Result "0-1"]
[Round "04"]
[TimeControl "180+2"]
[Date "2023.01.31"]
[WhiteClock "0:00:11"]
[BlackClock "0:00:48"]

1. e4 {[%clk 0:03:00]}  c5 {[%clk 0:02:58]} 2. Nf3 {[%clk 0:02:59]}  a6 {[%clk 0:02:57]} 3. c3 {[%clk 0:02:58]}  d5 {[%clk 0:02:57]} 4. exd5 {[%clk 0:02:58]}  Qxd5 {[%clk 0:02:58]} 5. d4 {[%clk 0:02:59]}  e6 {[%clk 0:02:58]} 6. Be3 {[%clk 0:02:57]}  cxd4 {[%clk 0:02:55]} 7. cxd4 {[%clk 0:02:57]}  Nf6 {[%clk 0:02:56]} 8. Nc3 {[%clk 0:02:57]}  Qd8 {[%clk 0:02:56]} 9. Bd3 {[%clk 0:02:55]}  Nc6 {[%clk 0:02:54]} 10. O-O {[%clk 0:02:54]}  Be7 {[%clk 0:02:50]} 11. Qe2 {[%clk 0:02:53]}  O-O {[%clk 0:02:50]} 12. Rad1 {[%clk 0:02:53]}  Nb4 {[%clk 0:02:42]} 13. Bb1 {[%clk 0:02:53]}  b5 {[%clk 0:02:42]} 14. Ne5 {[%clk 0:02:37]}  Bb7 {[%clk 0:02:42]} 15. Rfe1 {[%clk 0:02:33]}  Rc8 {[%clk 0:02:37]} 16. Bg5 {[%clk 0:02:22]}  Nfd5 {[%clk 0:02:28]} 17. Bd2 {[%clk 0:01:58]}  Nxc3 {[%clk 0:02:14]} 18. bxc3 {[%clk 0:01:53]}  Nd5 {[%clk 0:02:13]} 19. Qe4 {[%clk 0:01:48]}  g6 {[%clk 0:02:12]} 20. Bh6 {[%clk 0:01:19]}  Re8 {[%clk 0:02:07]} 21. Nxf7 {[%clk 0:01:14]}  Qd7 {[%clk 0:02:05]} 22. Ne5 {[%clk 0:01:03]}  Qc7 {[%clk 0:01:53]} 23. Nxg6 {[%clk 0:01:01]}  Bf6 {[%clk 0:01:46]} 24. Qg4 {[%clk 0:00:46]}  Bg7 {[%clk 0:01:32]} 25. Ne5 {[%clk 0:00:40]}  Nxc3 {[%clk 0:01:26]} 26. Rc1 {[%clk 0:00:34]}  Kh8 {[%clk 0:01:18]} 27. Rxc3 {[%clk 0:00:31]}  Bxh6 {[%clk 0:01:14]} 28. Rxc7 {[%clk 0:00:30]}  Rxc7 {[%clk 0:01:15]} 29. f3 {[%clk 0:00:21]}  Bd2 {[%clk 0:01:12]} 30. Qh5 {[%clk 0:00:19]}  Rec8 {[%clk 0:01:01]} 31. Nf7+ {[%clk 0:00:16]}  Kg7 {[%clk 0:00:59]} 32. Qxh7+ {[%clk 0:00:16]}  Kf8 {[%clk 0:00:59]} 33. Qh8+ {[%clk 0:00:13]}  Kxf7 {[%clk 0:00:57]} 34. Qh5+ {[%clk 0:00:13]}  Ke7 {[%clk 0:00:56]} 35. Qh4+ {[%clk 0:00:13]}  Kd7 {[%clk 0:00:50]} 36. Rd1 {[%clk 0:00:13]}  Rc1 {[%clk 0:00:48]} 37. Rxc1 {[%clk 0:00:11]}  Rxc1+ {[%clk 0:00:49]} 38. Kf2 {[%clk 0:00:11]}  Be1+ {[%clk 0:00:47]} 39. Ke3 {[%clk 0:00:11]}  Bxh4 {[%clk 0:00:48]} 0-1


[Site "https://www.chess.com"]

[Event "Titled Tuesday Blitz January 31 Early 2023"]
[White "Hernandez Bonilla, Amelia"]
[Black "Pourkashiyan, Atousa"]
[WhiteFideId "3900193"]
[BlackFideId "12502014"]
[WhiteElo "1960"]
[BlackElo "2282"]
[Result "0-1"]
[Round "04"]
[TimeControl "180+2"]
[Date "2023.01.31"]
[WhiteClock "0:00:12"]
[BlackClock "0:01:49"]

1. d4 {[%clk 0:03:00]}  Nf6 {[%clk 0:02:57]} 2. Bf4 {[%clk 0:02:55]}  g6 {[%clk 0:02:56]} 3. Nc3 {[%clk 0:02:53]}  Bg7 {[%clk 0:02:57]} 4. e4 {[%clk 0:02:45]}  d6 {[%clk 0:02:57]} 5. Qd2 {[%clk 0:02:40]}  a6 {[%clk 0:02:56]} 6. Bd3 {[%clk 0:02:33]}  Nc6 {[%clk 0:02:55]} 7. Nge2 {[%clk 0:02:28]}  b5 {[%clk 0:02:55]} 8. a3 {[%clk 0:02:24]}  O-O {[%clk 0:02:55]} 9. Bh6 {[%clk 0:02:20]}  e5 {[%clk 0:02:36]} 10. d5 {[%clk 0:02:10]}  Ne7 {[%clk 0:02:13]} 11. h4 {[%clk 0:02:04]}  Nh5 {[%clk 0:02:11]} 12. f3 {[%clk 0:01:54]}  f5 {[%clk 0:02:11]} 13. O-O-O {[%clk 0:01:34]}  f4 {[%clk 0:02:01]} 14. Bxg7 {[%clk 0:01:27]}  Kxg7 {[%clk 0:02:02]} 15. Rdg1 {[%clk 0:01:19]}  Rb8 {[%clk 0:02:03]} 16. g4 {[%clk 0:01:11]}  Nf6 {[%clk 0:02:00]} 17. Nd1 {[%clk 0:00:17]}  Bd7 {[%clk 0:01:58]} 18. Nf2 {[%clk 0:00:15]}  c5 {[%clk 0:01:50]} 19. h5 {[%clk 0:00:13]}  g5 {[%clk 0:01:49]} 20. h6+ {[%clk 0:00:14]}  Kh8 {[%clk 0:01:49]} 21. Nh3 {[%clk 0:00:13]}  Rg8 {[%clk 0:01:50]} 22. Rg2 {[%clk 0:00:12]}  c4 {[%clk 0:01:49]} 0-1


[Site "https://www.chess.com"]

[Event "Titled Tuesday Blitz January 31 Early 2023"]
[White "Sailer, Mike"]
[Black "Mushini Ajay"]
[WhiteFideId "2012901"]
[BlackFideId "35066188"]
[WhiteElo "2109"]
[BlackElo "2310"]
[Result "0-1"]
[Round "04"]
[TimeControl "180+2"]
[Date "2023.01.31"]
[WhiteClock "0:00:06"]
[BlackClock "0:00:22"]

1. d4 {[%clk 0:03:00]}  d5 {[%clk 0:03:00]} 2. Nf3 {[%clk 0:03:01]}  Nf6 {[%clk 0:03:00]} 3. Bf4 {[%clk 0:03:01]}  c5 {[%clk 0:03:00]} 4. e3 {[%clk 0:03:02]}  cxd4 {[%clk 0:03:00]} 5. exd4 {[%clk 0:03:03]}  Nc6 {[%clk 0:03:00]} 6. c3 {[%clk 0:03:03]}  Bg4 {[%clk 0:03:01]} 7. Be2 {[%clk 0:03:03]}  e6 {[%clk 0:03:01]} 8. O-O {[%clk 0:03:03]}  Bd6 {[%clk 0:03:01]} 9. Ne5 {[%clk 0:03:02]}  Bxe2 {[%clk 0:03:00]} 10. Qxe2 {[%clk 0:03:02]}  O-O {[%clk 0:03:00]} 11. Nd2 {[%clk 0:03:03]}  Qc7 {[%clk 0:02:57]} 12. Bg3 {[%clk 0:02:54]}  Rab8 {[%clk 0:02:50]} 13. f4 {[%clk 0:02:54]}  b5 {[%clk 0:02:49]} 14. a3 {[%clk 0:02:55]}  a5 {[%clk 0:02:49]} 15. Bh4 {[%clk 0:02:47]}  Nd7 {[%clk 0:02:37]} 16. Rf3 {[%clk 0:02:27]}  b4 {[%clk 0:02:21]} 17. axb4 {[%clk 0:02:27]}  axb4 {[%clk 0:02:21]} 18. Rh3 {[%clk 0:02:21]}  bxc3 {[%clk 0:02:20]} 19. bxc3 {[%clk 0:02:21]}  Rbe8 {[%clk 0:02:09]} 20. Qd3 {[%clk 0:02:12]}  f5 {[%clk 0:02:04]} 21. Ra6 {[%clk 0:02:01]}  Ncxe5 {[%clk 0:01:57]} 22. fxe5 {[%clk 0:01:59]}  Bxe5 {[%clk 0:01:55]} 23. dxe5 {[%clk 0:01:53]}  Nc5 {[%clk 0:01:55]} 24. Qe2 {[%clk 0:01:39]}  Nxa6 {[%clk 0:01:55]} 25. Qxa6 {[%clk 0:01:37]}  Qxe5 {[%clk 0:01:51]} 26. Bf2 {[%clk 0:01:29]}  Ra8 {[%clk 0:01:41]} 27. Qf1 {[%clk 0:01:26]}  Ra2 {[%clk 0:01:37]} 28. Re3 {[%clk 0:01:23]}  Qf6 {[%clk 0:01:35]} 29. Nf3 {[%clk 0:01:21]}  Rfa8 {[%clk 0:01:32]} 30. Re1 {[%clk 0:01:20]}  Qxc3 {[%clk 0:01:26]} 31. Bd4 {[%clk 0:01:18]}  Qc4 {[%clk 0:01:10]} 32. Rxe6 {[%clk 0:01:09]}  Qxf1+ {[%clk 0:00:59]} 33. Kxf1 {[%clk 0:01:09]}  h6 {[%clk 0:01:00]} 34. Re5 {[%clk 0:00:50]}  Rc8 {[%clk 0:00:47]} 35. Rxd5 {[%clk 0:00:44]}  Rc1+ {[%clk 0:00:41]} 36. Ne1 {[%clk 0:00:44]}  Rd1 {[%clk 0:00:40]} 37. Rd7 {[%clk 0:00:38]}  Rad2 {[%clk 0:00:27]} 38. Rxg7+ {[%clk 0:00:23]}  Kf8 {[%clk 0:00:27]} 39. Rg6 {[%clk 0:00:12]}  Rxd4 {[%clk 0:00:26]} 40. Rxh6 {[%clk 0:00:12]}  Re4 {[%clk 0:00:27]} 41. Rf6+ {[%clk 0:00:10]}  Kg7 {[%clk 0:00:27]} 42. Rxf5 {[%clk 0:00:11]}  Rdxe1+ {[%clk 0:00:25]} 43. Kf2 {[%clk 0:00:12]}  R4e2+ {[%clk 0:00:25]} 44. Kg3 {[%clk 0:00:11]}  Rg1 {[%clk 0:00:24]} 45. Rg5+ {[%clk 0:00:09]}  Kh6 {[%clk 0:00:24]} 46. Kf3 {[%clk 0:00:06]}  Kxg5 {[%clk 0:00:22]} 0-1


[Site "https://www.chess.com"]

[Event "Titled Tuesday Blitz January 31 Early 2023"]
[White "Hertlein, Irena"]
[Black "Lopez Idarraga, Daniel Eduardo"]
[WhiteFideId "21817618"]
[BlackFideId "4405501"]
[WhiteElo "1994"]
[BlackElo "2009"]
[Result "1/2-1/2"]
[Round "04"]
[TimeControl "180+2"]
[Date "2023.01.31"]
[WhiteClock "0:00:49"]
[BlackClock "0:00:44"]

1. Nf3 {[%clk 0:03:00]}  Nf6 {[%clk 0:03:00]} 2. c4 {[%clk 0:03:00]}  e6 {[%clk 0:03:01]} 3. b3 {[%clk 0:02:59]}  d5 {[%clk 0:03:02]} 4. Bb2 {[%clk 0:02:59]}  a5 {[%clk 0:03:00]} 5. e3 {[%clk 0:02:56]}  a4 {[%clk 0:03:00]} 6. bxa4 {[%clk 0:02:50]}  Bd7 {[%clk 0:02:58]} 7. Nc3 {[%clk 0:02:49]}  Bb4 {[%clk 0:02:55]} 8. cxd5 {[%clk 0:02:37]}  exd5 {[%clk 0:02:52]} 9. Qb3 {[%clk 0:02:33]}  Qe7 {[%clk 0:02:46]} 10. Nb5 {[%clk 0:02:08]}  Bxb5 {[%clk 0:02:32]} 11. Bxb5+ {[%clk 0:02:07]}  c6 {[%clk 0:02:32]} 12. Bxf6 {[%clk 0:01:57]}  Qxf6 {[%clk 0:02:26]} 13. O-O {[%clk 0:01:56]}  Bd6 {[%clk 0:02:20]} 14. Be2 {[%clk 0:01:38]}  Qe7 {[%clk 0:02:20]} 15. Rab1 {[%clk 0:01:36]}  Ra7 {[%clk 0:02:18]} 16. Qb6 {[%clk 0:01:33]}  Rxa4 {[%clk 0:02:14]} 17. Qxb7 {[%clk 0:01:32]}  Qxb7 {[%clk 0:02:15]} 18. Rxb7 {[%clk 0:01:31]}  Rxa2 {[%clk 0:02:13]} 19. Rfb1 {[%clk 0:01:05]}  Nd7 {[%clk 0:02:10]} 20. Nd4 {[%clk 0:00:58]}  Rxd2 {[%clk 0:02:01]} 21. Bf3 {[%clk 0:00:35]}  c5 {[%clk 0:00:23]} 22. Nf5 {[%clk 0:00:31]}  Be5 {[%clk 0:00:19]} 23. g3 {[%clk 0:00:18]}  g6 {[%clk 0:00:18]} 24. Nh4 {[%clk 0:00:16]}  Ke7 {[%clk 0:00:16]} 25. Bg4 {[%clk 0:00:15]}  f5 {[%clk 0:00:15]} 26. Nxf5+ {[%clk 0:00:15]}  gxf5 {[%clk 0:00:14]} 27. Bxf5 {[%clk 0:00:16]}  Rd8 {[%clk 0:00:13]} 28. f4 {[%clk 0:00:16]}  Bd6 {[%clk 0:00:10]} 29. R1b6 {[%clk 0:00:16]}  c4 {[%clk 0:00:09]} 30. Rc6 {[%clk 0:00:16]}  Re2 {[%clk 0:00:06]} 31. e4 {[%clk 0:00:14]}  dxe4 {[%clk 0:00:06]} 32. Rxc4 {[%clk 0:00:14]}  e3 {[%clk 0:00:06]} 33. Re4+ {[%clk 0:00:15]}  Kf6 {[%clk 0:00:05]} 34. Bxd7 {[%clk 0:00:15]}  Re1+ {[%clk 0:00:04]} 35. Kg2 {[%clk 0:00:14]}  e2 {[%clk 0:00:04]} 36. Kf2 {[%clk 0:00:14]}  Rh1 {[%clk 0:00:02]} 37. Rxe2 {[%clk 0:00:14]}  Rxh2+ {[%clk 0:00:02]} 38. Kf3 {[%clk 0:00:15]}  Rxe2 {[%clk 0:00:03]} 39. Kxe2 {[%clk 0:00:15]}  Rf8 {[%clk 0:00:02]} 40. Kf3 {[%clk 0:00:15]}  Rf7 {[%clk 0:00:02]} 41. g4 {[%clk 0:00:14]}  Kg7 {[%clk 0:00:03]} 42. g5 {[%clk 0:00:14]}  Rxf4+ {[%clk 0:00:02]} 43. Ke3 {[%clk 0:00:13]}  Rf7 {[%clk 0:00:03]} 44. Ke4 {[%clk 0:00:11]}  Bf4 {[%clk 0:00:03]} 45. Bc6 {[%clk 0:00:09]}  Bxg5 {[%clk 0:00:03]} 46. Rxf7+ {[%clk 0:00:08]}  Kxf7 {[%clk 0:00:04]} 47. Kf5 {[%clk 0:00:08]}  h6 {[%clk 0:00:03]} 48. Kg4 {[%clk 0:00:09]}  Kg6 {[%clk 0:00:04]} 49. Be8+ {[%clk 0:00:08]}  Kg7 {[%clk 0:00:04]} 50. Kh5 {[%clk 0:00:08]}  Bc1 {[%clk 0:00:04]} 51. Kg4 {[%clk 0:00:09]}  Bb2 {[%clk 0:00:05]} 52. Kh3 {[%clk 0:00:10]}  Ba1 {[%clk 0:00:05]} 53. Kg2 {[%clk 0:00:11]}  Kf6 {[%clk 0:00:06]} 54. Kh1 {[%clk 0:00:12]}  Kg5 {[%clk 0:00:07]} 55. Kg2 {[%clk 0:00:12]}  h5 {[%clk 0:00:07]} 56. Kh1 {[%clk 0:00:13]}  h4 {[%clk 0:00:07]} 57. Kg2 {[%clk 0:00:14]}  Kg4 {[%clk 0:00:07]} 58. Kh1 {[%clk 0:00:15]}  Kg3 {[%clk 0:00:07]} 59. Bd7 {[%clk 0:00:16]}  Bd4 {[%clk 0:00:07]} 60. Bh3 {[%clk 0:00:15]}  Bf6 {[%clk 0:00:07]} 61. Kg1 {[%clk 0:00:15]}  Kxh3 {[%clk 0:00:07]} 62. Kh1 {[%clk 0:00:15]}  Bg7 {[%clk 0:00:07]} 63. Kg1 {[%clk 0:00:16]}  Kg3 {[%clk 0:00:08]} 64. Kh1 {[%clk 0:00:17]}  h3 {[%clk 0:00:09]} 65. Kg1 {[%clk 0:00:18]}  Kg4 {[%clk 0:00:09]} 66. Kh1 {[%clk 0:00:19]}  Kh4 {[%clk 0:00:09]} 67. Kh2 {[%clk 0:00:20]}  Be5+ {[%clk 0:00:10]} 68. Kh1 {[%clk 0:00:21]}  Bd4 {[%clk 0:00:09]} 69. Kh2 {[%clk 0:00:20]}  Kg4 {[%clk 0:00:08]} 70. Kh1 {[%clk 0:00:20]}  Bc5 {[%clk 0:00:08]} 71. Kh2 {[%clk 0:00:21]}  Be7 {[%clk 0:00:09]} 72. Kh1 {[%clk 0:00:22]}  Bh4 {[%clk 0:00:09]} 73. Kh2 {[%clk 0:00:23]}  Bg3+ {[%clk 0:00:10]} 74. Kh1 {[%clk 0:00:24]}  Kf3 {[%clk 0:00:10]} 75. Kg1 {[%clk 0:00:25]}  Kf4 {[%clk 0:00:10]} 76. Kh1 {[%clk 0:00:26]}  Kf5 {[%clk 0:00:10]} 77. Kg1 {[%clk 0:00:27]}  Kg6 {[%clk 0:00:11]} 78. Kh1 {[%clk 0:00:27]}  Kf7 {[%clk 0:00:12]} 79. Kg1 {[%clk 0:00:28]}  Ke7 {[%clk 0:00:13]} 80. Kh1 {[%clk 0:00:28]}  Kd7 {[%clk 0:00:14]} 81. Kg1 {[%clk 0:00:28]}  Kc7 {[%clk 0:00:14]} 82. Kh1 {[%clk 0:00:29]}  Kb7 {[%clk 0:00:15]} 83. Kg1 {[%clk 0:00:29]}  Ka6 {[%clk 0:00:16]} 84. Kh1 {[%clk 0:00:29]}  Kb5 {[%clk 0:00:17]} 85. Kg1 {[%clk 0:00:30]}  Ka5 {[%clk 0:00:18]} 86. Kh1 {[%clk 0:00:31]}  Ka4 {[%clk 0:00:19]} 87. Kg1 {[%clk 0:00:32]}  Kb4 {[%clk 0:00:20]} 88. Kh1 {[%clk 0:00:32]}  Ka3 {[%clk 0:00:21]} 89. Kg1 {[%clk 0:00:32]}  Kb3 {[%clk 0:00:22]} 90. Kh1 {[%clk 0:00:32]}  Ka2 {[%clk 0:00:22]} 91. Kg1 {[%clk 0:00:32]}  Kb2 {[%clk 0:00:23]} 92. Kh1 {[%clk 0:00:33]}  Ka1 {[%clk 0:00:24]} 93. Kg1 {[%clk 0:00:34]}  Kb1 {[%clk 0:00:25]} 94. Kh1 {[%clk 0:00:35]}  Kc1 {[%clk 0:00:26]} 95. Kg1 {[%clk 0:00:36]}  Kc2 {[%clk 0:00:27]} 96. Kh1 {[%clk 0:00:36]}  Kc3 {[%clk 0:00:28]} 97. Kg1 {[%clk 0:00:37]}  Kc4 {[%clk 0:00:29]} 98. Kh1 {[%clk 0:00:38]}  Kc5 {[%clk 0:00:30]} 99. Kg1 {[%clk 0:00:39]}  Kc6 {[%clk 0:00:31]} 100. Kh1 {[%clk 0:00:39]}  Kc7 {[%clk 0:00:31]} 101. Kg1 {[%clk 0:00:40]}  Kc8 {[%clk 0:00:32]} 102. Kh1 {[%clk 0:00:41]}  Kd8 {[%clk 0:00:33]} 103. Kg1 {[%clk 0:00:40]}  Kd7 {[%clk 0:00:34]} 104. Kh1 {[%clk 0:00:41]}  Kd6 {[%clk 0:00:35]} 105. Kg1 {[%clk 0:00:42]}  Kd5 {[%clk 0:00:36]} 106. Kh1 {[%clk 0:00:42]}  Kd4 {[%clk 0:00:37]} 107. Kg1 {[%clk 0:00:43]}  Kd3 {[%clk 0:00:38]} 108. Kh1 {[%clk 0:00:44]}  Kd2 {[%clk 0:00:39]} 109. Kg1 {[%clk 0:00:45]}  Kd1 {[%clk 0:00:40]} 110. Kh1 {[%clk 0:00:46]}  Ke1 {[%clk 0:00:40]} 111. Kg1 {[%clk 0:00:47]}  Ke2 {[%clk 0:00:41]} 112. Kh1 {[%clk 0:00:48]}  Ke3 {[%clk 0:00:42]} 113. Kg1 {[%clk 0:00:48]}  Ke4 {[%clk 0:00:43]} 114. Kh1 {[%clk 0:00:49]}  Ke5 {[%clk 0:00:44]} 1/2-1/2


[Site "https://www.chess.com"]

[Event "Titled Tuesday Blitz January 31 Early 2023"]
[White "Wilson, Elvin"]
[Black "Wickramasinghe, Minethma Lasandi"]
[WhiteFideId "2014874"]
[BlackFideId "9966170"]
[WhiteElo "2183"]
[BlackElo "1483"]
[Result "1-0"]
[Round "04"]
[TimeControl "180+2"]
[Date "2023.01.31"]
[WhiteClock "0:00:50"]
[BlackClock "0:00:32"]

1. c4 {[%clk 0:03:00]}  Nf6 {[%clk 0:02:56]} 2. g3 {[%clk 0:02:59]}  c5 {[%clk 0:02:56]} 3. Bg2 {[%clk 0:02:52]}  Nc6 {[%clk 0:02:56]} 4. Nc3 {[%clk 0:02:50]}  d6 {[%clk 0:02:54]} 5. e4 {[%clk 0:02:49]}  g6 {[%clk 0:02:55]} 6. Nge2 {[%clk 0:02:48]}  Bg7 {[%clk 0:02:55]} 7. O-O {[%clk 0:02:47]}  O-O {[%clk 0:02:55]} 8. d3 {[%clk 0:02:47]}  e5 {[%clk 0:02:55]} 9. Nd5 {[%clk 0:02:36]}  Be6 {[%clk 0:02:40]} 10. Bg5 {[%clk 0:02:33]}  h6 {[%clk 0:02:37]} 11. Nxf6+ {[%clk 0:02:30]}  Bxf6 {[%clk 0:02:38]} 12. Bxh6 {[%clk 0:02:29]}  Re8 {[%clk 0:02:37]} 13. Qd2 {[%clk 0:02:25]}  Nd4 {[%clk 0:02:32]} 14. Nxd4 {[%clk 0:02:19]}  cxd4 {[%clk 0:02:22]} 15. f4 {[%clk 0:02:14]}  Kh7 {[%clk 0:01:42]} 16. f5 {[%clk 0:02:12]}  Bd7 {[%clk 0:01:27]} 17. h4 {[%clk 0:01:52]}  Rh8 {[%clk 0:01:15]} 18. Rf2 {[%clk 0:01:35]}  Kg8 {[%clk 0:01:05]} 19. Raf1 {[%clk 0:01:26]}  Bxh4 {[%clk 0:00:59]} 20. fxg6 {[%clk 0:01:20]}  fxg6 {[%clk 0:00:45]} 21. Rf8+ {[%clk 0:01:17]}  Qxf8 {[%clk 0:00:44]} 22. Rxf8+ {[%clk 0:01:16]}  Rxf8 {[%clk 0:00:44]} 23. Bxf8 {[%clk 0:01:15]}  Kxf8 {[%clk 0:00:45]} 24. gxh4 {[%clk 0:01:13]}  Rxh4 {[%clk 0:00:46]} 25. Qb4 {[%clk 0:01:01]}  Ke7 {[%clk 0:00:42]} 26. Qxb7 {[%clk 0:01:00]}  a5 {[%clk 0:00:42]} 27. Qc7 {[%clk 0:00:53]}  g5 {[%clk 0:00:33]} 28. c5 {[%clk 0:00:51]}  dxc5 {[%clk 0:00:32]} 29. Qxe5+ {[%clk 0:00:50]} 1-0


[Site "https://www.chess.com"]

[Event "Titled Tuesday Blitz January 31 Early 2023"]
[White "Onslow, Alfie"]
[Black "Mohammadian, Mohammad"]
[WhiteFideId "436976"]
[BlackFideId "12566055"]
[WhiteElo "2157"]
[BlackElo "1398"]
[Result "1-0"]
[Round "04"]
[TimeControl "180+2"]
[Date "2023.01.31"]
[WhiteClock "0:01:45"]
[BlackClock "0:02:32"]

1. e4 {[%clk 0:02:56]}  e5 {[%clk 0:02:59]} 2. Bc4 {[%clk 0:02:54]}  Nf6 {[%clk 0:02:58]} 3. d3 {[%clk 0:02:31]}  Bc5 {[%clk 0:02:56]} 4. Nc3 {[%clk 0:02:26]}  c6 {[%clk 0:02:55]} 5. Nf3 {[%clk 0:02:24]}  d6 {[%clk 0:02:51]} 6. O-O {[%clk 0:02:19]}  O-O {[%clk 0:02:50]} 7. a3 {[%clk 0:02:17]}  a5 {[%clk 0:02:48]} 8. Re1 {[%clk 0:02:12]}  Bg4 {[%clk 0:02:47]} 9. h3 {[%clk 0:02:12]}  Bh5 {[%clk 0:02:45]} 10. g4 {[%clk 0:02:11]}  Nxg4 {[%clk 0:02:41]} 11. hxg4 {[%clk 0:02:06]}  Bxg4 {[%clk 0:02:41]} 12. Kg2 {[%clk 0:02:07]}  Kh8 {[%clk 0:02:37]} 13. Rh1 {[%clk 0:01:56]}  f5 {[%clk 0:02:36]} 14. Ng5 {[%clk 0:01:48]}  Bxd1 {[%clk 0:02:32]} 15. Rxh7# {[%clk 0:01:45]} 1-0


[Site "https://www.chess.com"]